[Event "*** MasterClass Titled Tuesday Blitz"]
[Site "Chess.com"]
[Date "2017.07.04"]
[Round "10"]
[White "spirals5"]
[Black "Al_Shima"]
[Result "1/2-1/2"]
[WhiteElo "2378"]
[BlackElo "2360"]
[TimeControl "180+2"]
[EndTime "15:18:11 PDT"]
[Termination "Game drawn by repetition"]

1. e4 {[%clk 0:03:02]} 1... d5 {[%clk 0:02:44]} 2. exd5 {[%clk 0:03:02.4]} 2...
Nf6 {[%clk 0:02:44.5]} 3. Nc3 {[%clk 0:03:02.9]} 3... Nxd5 {[%clk 0:02:45.5]} 4.
Bc4 {[%clk 0:03:03.7]} 4... c6 {[%clk 0:02:46.6]} 5. d4 {[%clk 0:02:59.2]} 5...
Bf5 {[%clk 0:02:46.2]} 6. Nf3 {[%clk 0:02:59.1]} 6... e6 {[%clk 0:02:46.2]} 7.
O-O {[%clk 0:02:59.2]} 7... Be7 {[%clk 0:02:47.1]} 8. Ne5 {[%clk 0:02:58.5]}
8... Nd7 {[%clk 0:02:47.5]} 9. Nxd5 {[%clk 0:02:54.4]} 9... exd5 {[%clk
0:02:36.4]} 10. Bd3 {[%clk 0:02:50.4]} 10... Bxd3 {[%clk 0:02:32.6]} 11. Qxd3
{[%clk 0:02:46.3]} 11... O-O {[%clk 0:02:32.5]} 12. Bf4 {[%clk 0:02:41.8]} 12...
Re8 {[%clk 0:02:27.3]} 13. Nxd7 {[%clk 0:02:41.5]} 13... Qxd7 {[%clk 0:02:28.1]}
14. Rfe1 {[%clk 0:02:41.3]} 14... Bf6 {[%clk 0:02:24.7]} 15. c3 {[%clk
0:02:39.7]} 15... Re6 {[%clk 0:02:19.1]} 16. Rxe6 {[%clk 0:02:38.8]} 16... Qxe6
{[%clk 0:02:20.4]} 17. h3 {[%clk 0:02:35.5]} 17... Re8 {[%clk 0:02:19.6]} 18.
Kf1 {[%clk 0:02:32]} 18... h5 {[%clk 0:02:14]} 19. Bd2 {[%clk 0:02:31.6]} 19...
Qd6 {[%clk 0:02:11.8]} 20. Re1 {[%clk 0:02:20.3]} 20... Rxe1+ {[%clk 0:02:06.4]}
21. Bxe1 {[%clk 0:02:20.9]} 21... g6 {[%clk 0:01:57.8]} 22. Bd2 {[%clk
0:02:17.7]} 22... Qh2 {[%clk 0:01:53.3]} 23. Qg3 {[%clk 0:02:12.4]} 23... Qxg3
{[%clk 0:01:45.8]} 24. fxg3 {[%clk 0:02:12.8]} 24... Kf8 {[%clk 0:01:46.3]} 25.
Ke2 {[%clk 0:02:12.9]} 25... Ke7 {[%clk 0:01:47.5]} 26. Kd3 {[%clk 0:02:13.1]}
26... Ke6 {[%clk 0:01:48.6]} 27. g4 {[%clk 0:02:13.6]} 27... hxg4 {[%clk
0:01:49]} 28. hxg4 {[%clk 0:02:14.2]} 28... Bh4 {[%clk 0:01:49.7]} 29. b3 {[%clk
0:02:11.6]} 29... Kf6 {[%clk 0:01:48.5]} 30. c4 {[%clk 0:02:11.4]} 30... Bg5
{[%clk 0:01:48.9]} 31. Ba5 {[%clk 0:02:05.9]} 31... b6 {[%clk 0:01:43.2]} 32.
Be1 {[%clk 0:02:04.3]} 32... Ke6 {[%clk 0:01:39.5]} 33. a4 {[%clk 0:02:02.1]}
33... a6 {[%clk 0:01:38.9]} 34. Bg3 {[%clk 0:01:57.3]} 34... Bd8 {[%clk
0:01:29.8]} 35. Be5 {[%clk 0:01:54.7]} 35... f5 {[%clk 0:01:28.5]} 36. gxf5+
{[%clk 0:01:53.4]} 36... Kxf5 {[%clk 0:01:29]} 37. cxd5 {[%clk 0:01:51.7]} 37...
cxd5 {[%clk 0:01:29.5]} 38. Ke3 {[%clk 0:01:52.7]} 38... Kg4 {[%clk 0:01:29.7]}
39. Kf2 {[%clk 0:01:53.2]} 39... b5 {[%clk 0:01:27.4]} 40. axb5 {[%clk
0:01:53.5]} 40... axb5 {[%clk 0:01:29.2]} 41. g3 {[%clk 0:01:44.7]} 41... Bg5
{[%clk 0:01:29.5]} 42. Ke2 {[%clk 0:01:41.1]} 42... Be7 {[%clk 0:01:27.9]} 43.
Kf2 {[%clk 0:01:41]} 43... Bb4 {[%clk 0:01:28.7]} 44. Ke2 {[%clk 0:01:38.5]}
44... Bc3 {[%clk 0:01:27.6]} 45. Kf2 {[%clk 0:01:38.2]} 45... g5 {[%clk
0:01:27.6]} 46. Ke2 {[%clk 0:01:34.2]} 46... Ba5 {[%clk 0:01:06.3]} 47. Kf2
{[%clk 0:01:30.5]} 47... Kf5 {[%clk 0:01:00.1]} 48. Kf3 {[%clk 0:01:30.2]} 48...
g4+ {[%clk 0:00:56.1]} 49. Ke3 {[%clk 0:01:28.7]} 49... Be1 {[%clk 0:00:56]} 50.
Ke2 {[%clk 0:01:25.7]} 50... Bc3 {[%clk 0:00:56.1]} 51. Kd3 {[%clk 0:01:25.5]}
51... Be1 {[%clk 0:00:53.8]} 52. Ke2 {[%clk 0:01:26.1]} 52... Bb4 {[%clk
0:00:54.4]} 53. Ke3 {[%clk 0:01:25.4]} 53... Ba5 {[%clk 0:00:55.2]} 54. Kd3
{[%clk 0:01:25.8]} 54... Bb6 {[%clk 0:00:49.5]} 55. Ke3 {[%clk 0:01:24.6]} 55...
Ba5 {[%clk 0:00:47.3]} 56. Kd3 {[%clk 0:01:24.6]} 56... Bb4 {[%clk 0:00:46.6]}
57. Ke3 {[%clk 0:01:24.8]} 57... Bc3 {[%clk 0:00:45.9]} 58. Kd3 {[%clk
0:01:25.3]} 58... Bb2 {[%clk 0:00:46.2]} 59. Ke3 {[%clk 0:01:25.6]} 59... Bc1+
{[%clk 0:00:46.1]} 60. Kd3 {[%clk 0:01:26.2]} 60... Ba3 {[%clk 0:00:46.1]} 61.
Ke3 {[%clk 0:01:26.7]} 61... Be7 {[%clk 0:00:45.5]} 62. Kd3 {[%clk 0:01:27.3]}
62... Bb4 {[%clk 0:00:36]} 63. Ke3 {[%clk 0:01:27.3]} 1/2-1/2

[Event "*** MasterClass Titled Tuesday Blitz"]
[Site "Chess.com"]
[Date "2017.07.04"]
[Round "10"]
[White "wonderfultime"]
[Black "SergeiAza"]
[Result "1-0"]
[WhiteElo "2676"]
[BlackElo "2712"]
[TimeControl "180+2"]
[EndTime "15:18:33 PDT"]
[Termination "wonderfultime won on time"]

1. d4 {[%clk 0:03:01.9]} 1... d5 {[%clk 0:02:59.1]} 2. c4 {[%clk 0:03:02]} 2...
e6 {[%clk 0:03:00.1]} 3. Nc3 {[%clk 0:03:02.8]} 3... Be7 {[%clk 0:03:01]} 4. Nf3
{[%clk 0:03:03.9]} 4... Nf6 {[%clk 0:03:00.7]} 5. Bf4 {[%clk 0:02:58.4]} 5...
O-O {[%clk 0:03:00.7]} 6. e3 {[%clk 0:02:59.9]} 6... c5 {[%clk 0:02:59.6]} 7.
dxc5 {[%clk 0:02:57.5]} 7... Bxc5 {[%clk 0:02:59.8]} 8. a3 {[%clk 0:02:53.5]}
8... Nc6 {[%clk 0:02:59.9]} 9. Qc2 {[%clk 0:02:45.9]} 9... Qa5 {[%clk
0:02:58.2]} 10. Rd1 {[%clk 0:02:44.7]} 10... Be7 {[%clk 0:02:53.9]} 11. Be2
{[%clk 0:02:29.3]} 11... dxc4 {[%clk 0:02:52.8]} 12. Bxc4 {[%clk 0:02:29.1]}
12... b6 {[%clk 0:02:37.4]} 13. O-O {[%clk 0:02:26.9]} 13... Bb7 {[%clk
0:02:37.1]} 14. Nb5 {[%clk 0:02:03.6]} 14... Rac8 {[%clk 0:02:33.6]} 15. Nd6
{[%clk 0:02:03.1]} 15... Bxd6 {[%clk 0:02:28]} 16. Bxd6 {[%clk 0:02:05]} 16...
Rfd8 {[%clk 0:02:20.8]} 17. Qb3 {[%clk 0:01:08.2]} 17... Qh5 {[%clk 0:02:11.1]}
18. Be2 {[%clk 0:00:59.9]} 18... Na5 {[%clk 0:01:53.7]} 19. Qb4 {[%clk
0:01:01.1]} 19... Nd5 {[%clk 0:01:41.4]} 20. Rxd5 {[%clk 0:00:25.6]} 20... Bxd5
{[%clk 0:01:38.8]} 21. Bg3 {[%clk 0:00:24.8]} 21... Bc4 {[%clk 0:01:28.4]} 22.
Bxc4 {[%clk 0:00:25.4]} 22... Nxc4 {[%clk 0:01:29]} 23. Qe7 {[%clk 0:00:26.7]}
23... Qc5 {[%clk 0:01:14.5]} 24. Qxa7 {[%clk 0:00:26.1]} 24... Nxb2 {[%clk
0:01:08.1]} 25. Ne5 {[%clk 0:00:23.6]} 25... Rc7 {[%clk 0:00:50.1]} 26. Qa6
{[%clk 0:00:24.6]} 26... Qa5 {[%clk 0:00:32.3]} 27. Qe2 {[%clk 0:00:22.8]} 27...
Qc3 {[%clk 0:00:24.6]} 28. h4 {[%clk 0:00:19.5]} 28... Nc4 {[%clk 0:00:22.1]}
29. Ng4 {[%clk 0:00:15.4]} 29... Qd3 {[%clk 0:00:19.3]} 30. Qxd3 {[%clk
0:00:16]} 30... Rxd3 {[%clk 0:00:18.5]} 31. Bxc7 {[%clk 0:00:17.9]} 31... Rxa3
{[%clk 0:00:14.8]} 32. Rc1 {[%clk 0:00:18.6]} 32... b5 {[%clk 0:00:15.5]} 33.
Ne5 {[%clk 0:00:19.6]} 33... Nxe5 {[%clk 0:00:06.9]} 34. Bxe5 {[%clk 0:00:21.5]}
34... f6 {[%clk 0:00:07.6]} 35. Rc8+ {[%clk 0:00:22.3]} 35... Kf7 {[%clk
0:00:07.8]} 36. Rc7+ {[%clk 0:00:24.2]} 36... Kg6 {[%clk 0:00:07.8]} 37. Bd6
{[%clk 0:00:26.1]} 37... Ra8 {[%clk 0:00:06.2]} 38. g4 {[%clk 0:00:24]} 38... h5
{[%clk 0:00:05.3]} 39. gxh5+ {[%clk 0:00:24.9]} 39... Kh7 {[%clk 0:00:05.4]} 40.
Rb7 {[%clk 0:00:23.6]} 40... Rd8 {[%clk 0:00:04.6]} 41. Be7 {[%clk 0:00:23.9]}
41... Rd1+ {[%clk 0:00:03]} 42. Kg2 {[%clk 0:00:24.3]} 42... Kg8 {[%clk
0:00:02.4]} 43. h6 {[%clk 0:00:25.1]} 1-0

[Event "*** MasterClass Titled Tuesday Blitz"]
[Site "Chess.com"]
[Date "2017.07.04"]
[Round "10"]
[White "Cryptochess"]
[Black "DrVelja"]
[Result "0-1"]
[WhiteElo "2501"]
[BlackElo "2566"]
[TimeControl "180+2"]
[EndTime "15:18:41 PDT"]
[Termination "DrVelja won by checkmate"]

1. e4 {[%clk 0:03:02]} 1... c5 {[%clk 0:02:38.7]} 2. Nc3 {[%clk 0:03:02.7]} 2...
Nc6 {[%clk 0:02:39.3]} 3. g3 {[%clk 0:03:04.3]} 3... g6 {[%clk 0:02:40.5]} 4.
Bg2 {[%clk 0:03:05.9]} 4... Bg7 {[%clk 0:02:42.2]} 5. d3 {[%clk 0:03:07.6]} 5...
e6 {[%clk 0:02:43.6]} 6. Be3 {[%clk 0:03:09.2]} 6... d6 {[%clk 0:02:43.6]} 7.
Qd2 {[%clk 0:03:09.9]} 7... Nge7 {[%clk 0:02:44.6]} 8. Bh6 {[%clk 0:03:11.4]}
8... O-O {[%clk 0:02:45.5]} 9. h4 {[%clk 0:03:12.7]} 9... Bxh6 {[%clk
0:02:47.1]} 10. Qxh6 {[%clk 0:03:13.9]} 10... f6 {[%clk 0:02:48.8]} 11. Qd2
{[%clk 0:03:12.8]} 11... e5 {[%clk 0:02:48.6]} 12. h5 {[%clk 0:03:11.4]} 12...
g5 {[%clk 0:02:49.7]} 13. h6 {[%clk 0:03:13.1]} 13... Nd4 {[%clk 0:02:42.5]} 14.
Nge2 {[%clk 0:03:12.4]} 14... Be6 {[%clk 0:02:37.2]} 15. f4 {[%clk 0:02:51.1]}
15... gxf4 {[%clk 0:02:37.4]} 16. gxf4 {[%clk 0:02:52.5]} 16... Kh8 {[%clk
0:02:38.2]} 17. f5 {[%clk 0:02:51.7]} 17... Bf7 {[%clk 0:02:37.8]} 18. Nxd4
{[%clk 0:02:47]} 18... cxd4 {[%clk 0:02:38.3]} 19. Ne2 {[%clk 0:02:47.5]} 19...
Rg8 {[%clk 0:02:39.1]} 20. Bf3 {[%clk 0:02:47.6]} 20... Rc8 {[%clk 0:02:28.7]}
21. c4 {[%clk 0:02:41.7]} 21... dxc3 {[%clk 0:02:24.5]} 22. Nxc3 {[%clk
0:02:41.2]} 22... d5 {[%clk 0:02:24.8]} 23. Qf2 {[%clk 0:02:39.7]} 23... d4
{[%clk 0:02:22.8]} 24. Ne2 {[%clk 0:02:32.8]} 24... Qa5+ {[%clk 0:02:12.5]} 25.
Kf1 {[%clk 0:02:33.5]} 25... Qd2 {[%clk 0:01:41.3]} 26. Qh4 {[%clk 0:02:23.8]}
26... Rg5 {[%clk 0:01:38.8]} 27. Rh3 {[%clk 0:01:52.9]} 27... Rc2 {[%clk
0:01:18.8]} 28. Rg3 {[%clk 0:01:21]} 28... Qxd3 {[%clk 0:01:08]} 29. Bh5 {[%clk
0:01:01.6]} 29... Bxh5 {[%clk 0:00:42.3]} 30. Rxd3 {[%clk 0:00:13.1]} 30...
Bxe2+ {[%clk 0:00:40.8]} 31. Kf2 {[%clk 0:00:13.9]} 31... Bxd3+ {[%clk 0:00:41]}
32. Kf3 {[%clk 0:00:15.5]} 32... Nxf5 {[%clk 0:00:27]} 33. exf5 {[%clk
0:00:12.1]} 33... e4+ {[%clk 0:00:27.9]} 34. Kf4 {[%clk 0:00:13.8]} 34... e3
{[%clk 0:00:18.7]} 35. Rf1 {[%clk 0:00:10.3]} 35... Bxf1 {[%clk 0:00:17.6]} 36.
Ke4 {[%clk 0:00:11.6]} 36... e2 {[%clk 0:00:16.4]} 37. Kxd4 {[%clk 0:00:11.1]}
37... Rc1 {[%clk 0:00:16.2]} 38. Qf4 {[%clk 0:00:10.7]} 38... e1=Q {[%clk
0:00:15.6]} 39. Qb8+ {[%clk 0:00:11.7]} 39... Rg8 {[%clk 0:00:03.7]} 40. Qd6
{[%clk 0:00:10]} 40... Rd1+ {[%clk 0:00:03.8]} 41. Kc5 {[%clk 0:00:11.9]} 41...
Rxd6 {[%clk 0:00:05.3]} 42. b4 {[%clk 0:00:13.5]} 42... Rc8+ {[%clk 0:00:06.5]}
43. Kxd6 {[%clk 0:00:14.6]} 43... Qe5+ {[%clk 0:00:08.7]} 44. Kd7 {[%clk
0:00:16.5]} 44... Rc7+ {[%clk 0:00:10.1]} 45. Kd8 {[%clk 0:00:17.4]} 45... Qe7#
{[%clk 0:00:17.7]} 0-1

[Event "*** MasterClass Titled Tuesday Blitz"]
[Site "Chess.com"]
[Date "2017.07.04"]
[Round "10"]
[White "Keranke"]
[Black "gena217"]
[Result "1-0"]
[WhiteElo "2662"]
[BlackElo "2619"]
[TimeControl "180+2"]
[EndTime "15:19:17 PDT"]
[Termination "Keranke won by resignation"]

1. d4 {[%clk 0:03:01.9]} 1... Nf6 {[%clk 0:03:00.2]} 2. Bf4 {[%clk 0:03:02.8]}
2... d5 {[%clk 0:03:00.6]} 3. e3 {[%clk 0:03:03.9]} 3... c5 {[%clk 0:03:02]} 4.
Nc3 {[%clk 0:03:04.9]} 4... cxd4 {[%clk 0:02:58.5]} 5. exd4 {[%clk 0:03:06.8]}
5... a6 {[%clk 0:02:59.3]} 6. Nf3 {[%clk 0:03:07.8]} 6... Nc6 {[%clk 0:03:00.2]}
7. Ne5 {[%clk 0:03:08.5]} 7... Bf5 {[%clk 0:02:49.8]} 8. Nxc6 {[%clk 0:03:02.3]}
8... bxc6 {[%clk 0:02:51.7]} 9. Bd3 {[%clk 0:02:57.4]} 9... Bxd3 {[%clk
0:02:45.6]} 10. Qxd3 {[%clk 0:02:59.3]} 10... e6 {[%clk 0:02:47.1]} 11. O-O
{[%clk 0:02:58.4]} 11... Be7 {[%clk 0:02:47.7]} 12. Na4 {[%clk 0:02:57.4]} 12...
O-O {[%clk 0:02:48.1]} 13. c4 {[%clk 0:02:56.5]} 13... Qa5 {[%clk 0:02:23.2]}
14. b3 {[%clk 0:02:56.1]} 14... Rfd8 {[%clk 0:02:22.3]} 15. c5 {[%clk
0:02:36.5]} 15... Qb5 {[%clk 0:02:15]} 16. Qxb5 {[%clk 0:02:31.8]} 16... axb5
{[%clk 0:02:09.3]} 17. Nb6 {[%clk 0:02:33.7]} 17... Ra3 {[%clk 0:02:08.3]} 18.
Bc1 {[%clk 0:02:23]} 18... Ra6 {[%clk 0:02:07.5]} 19. a4 {[%clk 0:02:24.3]}
19... Nd7 {[%clk 0:02:08.6]} 20. Bf4 {[%clk 0:02:13.5]} 20... e5 {[%clk
0:01:06.8]} 21. Nxd7 {[%clk 0:01:56.6]} 21... exf4 {[%clk 0:01:05.2]} 22. Ne5
{[%clk 0:01:17]} 22... Rda8 {[%clk 0:01:01.1]} 23. Nxc6 {[%clk 0:01:12.2]} 23...
Rxc6 {[%clk 0:00:59]} 24. axb5 {[%clk 0:01:13.4]} 24... Rcc8 {[%clk 0:00:57.5]}
25. b6 {[%clk 0:01:10.8]} 25... Rab8 {[%clk 0:00:54.8]} 26. b4 {[%clk
0:01:08.3]} 26... Bf6 {[%clk 0:00:46]} 27. Rfd1 {[%clk 0:01:09.3]} 27... g5
{[%clk 0:00:44.2]} 28. Ra7 {[%clk 0:01:04.5]} 28... Kg7 {[%clk 0:00:42.2]} 29.
Kf1 {[%clk 0:00:59.5]} 29... Bd8 {[%clk 0:00:39]} 30. Ra5 {[%clk 0:00:38.1]}
30... h6 {[%clk 0:00:37.7]} 31. Rb5 {[%clk 0:00:27]} 31... Rc6 {[%clk
0:00:36.6]} 32. Ke2 {[%clk 0:00:25.8]} 32... Kf6 {[%clk 0:00:34.8]} 33. Kd3
{[%clk 0:00:25.4]} 33... Ke6 {[%clk 0:00:19.7]} 34. Ra1 {[%clk 0:00:25.4]} 34...
Bf6 {[%clk 0:00:14]} 35. Ra7 {[%clk 0:00:21.5]} 35... Bd8 {[%clk 0:00:11.6]} 36.
h3 {[%clk 0:00:20.5]} 36... h5 {[%clk 0:00:12.4]} 37. f3 {[%clk 0:00:18.1]}
37... f6 {[%clk 0:00:13.5]} 38. Kc3 {[%clk 0:00:18.2]} 38... Kf5 {[%clk
0:00:14.5]} 39. Kb3 {[%clk 0:00:17]} 39... Re6 {[%clk 0:00:15]} 40. b7 {[%clk
0:00:09.2]} 40... Bc7 {[%clk 0:00:14]} 41. Ra8 {[%clk 0:00:09.2]} 41... g4
{[%clk 0:00:06.9]} 42. Rxb8 {[%clk 0:00:09.9]} 42... Bxb8 {[%clk 0:00:08.2]} 43.
Ra5 {[%clk 0:00:10.2]} 43... gxf3 {[%clk 0:00:06.8]} 44. gxf3 {[%clk 0:00:12.1]}
44... Re8 {[%clk 0:00:06.1]} 45. Ra8 {[%clk 0:00:12.4]} 45... Ke6 {[%clk
0:00:07.5]} 46. b5 {[%clk 0:00:12.2]} 46... Kd7 {[%clk 0:00:08.5]} 47. Kb4
{[%clk 0:00:11.8]} 47... Kc7 {[%clk 0:00:09.7]} 48. c6 {[%clk 0:00:13.4]} 48...
Kb6 {[%clk 0:00:10.9]} 49. Ra6+ {[%clk 0:00:14.3]} 49... Kc7 {[%clk 0:00:11.8]}
50. Kc5 {[%clk 0:00:15.9]} 50... Re1 {[%clk 0:00:10.2]} 51. b6+ {[%clk
0:00:17.2]} 51... Kd8 {[%clk 0:00:11.5]} 52. Ra8 {[%clk 0:00:18.4]} 1-0

[Event "*** MasterClass Titled Tuesday Blitz"]
[Site "Chess.com"]
[Date "2017.07.04"]
[Round "10"]
[White "playablecharacter"]
[Black "popov_m"]
[Result "0-1"]
[WhiteElo "2045"]
[BlackElo "2410"]
[TimeControl "180+2"]
[EndTime "15:19:52 PDT"]
[Termination "popov_m won by resignation"]

1. d4 {[%clk 0:03:01.9]} 1... Nf6 {[%clk 0:02:59.2]} 2. c4 {[%clk 0:03:02.6]}
2... g6 {[%clk 0:03:00.2]} 3. Nc3 {[%clk 0:02:59.4]} 3... Bg7 {[%clk 0:03:00.8]}
4. e4 {[%clk 0:03:00.3]} 4... d6 {[%clk 0:02:57.9]} 5. f3 {[%clk 0:02:59.4]}
5... O-O {[%clk 0:02:58.6]} 6. Be3 {[%clk 0:02:58.3]} 6... Nc6 {[%clk
0:02:59.4]} 7. Qd2 {[%clk 0:02:55]} 7... a6 {[%clk 0:03:00.3]} 8. Nge2 {[%clk
0:02:55.8]} 8... Na5 {[%clk 0:03:01.3]} 9. Nc1 {[%clk 0:02:56.1]} 9... Nd7
{[%clk 0:03:00.1]} 10. b4 {[%clk 0:02:48.1]} 10... Nc6 {[%clk 0:02:47.2]} 11. a3
{[%clk 0:02:42.5]} 11... e5 {[%clk 0:02:41]} 12. d5 {[%clk 0:02:33]} 12... Nd4
{[%clk 0:02:40.8]} 13. Ra2 {[%clk 0:02:20.8]} 13... f5 {[%clk 0:02:36.4]} 14.
N1e2 {[%clk 0:02:13.6]} 14... fxe4 {[%clk 0:02:28.7]} 15. Nxe4 {[%clk
0:02:06.8]} 15... Nf6 {[%clk 0:02:07.5]} 16. N4g3 {[%clk 0:01:49]} 16... Re8
{[%clk 0:01:48]} 17. Nc3 {[%clk 0:01:38.1]} 17... Nf5 {[%clk 0:01:18.1]} 18. Bg5
{[%clk 0:01:34.8]} 18... h6 {[%clk 0:01:14.8]} 19. Nxf5 {[%clk 0:01:34.2]} 19...
gxf5 {[%clk 0:00:53.6]} 20. Bxh6 {[%clk 0:01:30.1]} 20... Bh8 {[%clk 0:00:55.2]}
21. Be2 {[%clk 0:01:26.3]} 21... f4 {[%clk 0:00:55.9]} 22. Bg5 {[%clk
0:01:24.7]} 22... Kf7 {[%clk 0:00:53.2]} 23. Bd3 {[%clk 0:01:17.6]} 23... Rg8
{[%clk 0:00:52.5]} 24. h4 {[%clk 0:01:12.7]} 24... Qf8 {[%clk 0:00:51.1]} 25.
Bxf6 {[%clk 0:01:12.5]} 25... Bxf6 {[%clk 0:00:50.9]} 26. Ne4 {[%clk 0:01:11.5]}
26... Be7 {[%clk 0:00:51.8]} 27. Qf2 {[%clk 0:01:02.9]} 27... Qh6 {[%clk
0:00:50.2]} 28. Qg1 {[%clk 0:00:58.2]} 28... Qh5 {[%clk 0:00:26.3]} 29. Re2
{[%clk 0:00:45]} 29... Bf5 {[%clk 0:00:26.4]} 30. Rd2 {[%clk 0:00:45.3]} 30...
Bxe4 {[%clk 0:00:27.1]} 31. Bxe4 {[%clk 0:00:45.7]} 31... Rg3 {[%clk 0:00:28.4]}
32. Rh3 {[%clk 0:00:43]} 32... Rxh3 {[%clk 0:00:25.7]} 33. gxh3 {[%clk
0:00:44.4]} 33... Qxh4+ {[%clk 0:00:26.8]} 34. Rf2 {[%clk 0:00:45.8]} 34... Rg8
{[%clk 0:00:27.1]} 35. Qh2 {[%clk 0:00:43.7]} 35... Rg3 {[%clk 0:00:26.7]} 36.
Ke2 {[%clk 0:00:39]} 36... Qh6 {[%clk 0:00:22.1]} 37. Rg2 {[%clk 0:00:38.3]}
37... Rxh3 {[%clk 0:00:18.8]} 38. Qg1 {[%clk 0:00:39.5]} 38... Rh1 {[%clk
0:00:20.4]} 39. Qf2 {[%clk 0:00:35.1]} 39... Bh4 {[%clk 0:00:19.7]} 40. Qa7
{[%clk 0:00:35.8]} 40... Bd8 {[%clk 0:00:15.3]} 41. Qxb7 {[%clk 0:00:35.6]}
41... Qh4 {[%clk 0:00:16.5]} 42. Rf2 {[%clk 0:00:36.4]} 42... Qg3 {[%clk
0:00:14.3]} 43. Qc8 {[%clk 0:00:34.5]} 43... Qg1 {[%clk 0:00:14.6]} 44. Qf5+
{[%clk 0:00:27.6]} 44... Bf6 {[%clk 0:00:12.3]} 45. Qe6+ {[%clk 0:00:26.3]}
45... Kg7 {[%clk 0:00:11.7]} 46. Qg4+ {[%clk 0:00:27.7]} 46... Qxg4 {[%clk
0:00:12]} 47. fxg4 {[%clk 0:00:29.6]} 47... Ra1 {[%clk 0:00:11.9]} 48. Rf3
{[%clk 0:00:30.4]} 48... Bh4 {[%clk 0:00:11.1]} 49. Rd3 {[%clk 0:00:30.9]} 49...
Kf6 {[%clk 0:00:11.8]} 50. Bf5 {[%clk 0:00:31.4]} 50... Re1+ {[%clk 0:00:10.3]}
51. Kd2 {[%clk 0:00:32.3]} 51... e4 {[%clk 0:00:11.2]} 52. Rd4 {[%clk
0:00:32.2]} 52... Ke5 {[%clk 0:00:09.3]} 53. Rxe4+ {[%clk 0:00:29]} 53... Rxe4
{[%clk 0:00:10.9]} 54. Bxe4 {[%clk 0:00:30.9]} 54... Kxe4 {[%clk 0:00:12.8]} 55.
Ke2 {[%clk 0:00:30.4]} 55... f3+ {[%clk 0:00:12.4]} 56. Kf1 {[%clk 0:00:31.1]}
56... Kf4 {[%clk 0:00:13.2]} 57. a4 {[%clk 0:00:29.6]} 57... Bf6 {[%clk
0:00:13.8]} 58. b5 {[%clk 0:00:26.7]} 58... a5 {[%clk 0:00:10.6]} 59. c5 {[%clk
0:00:26.8]} 59... dxc5 {[%clk 0:00:10.6]} 60. g5 {[%clk 0:00:25.4]} 60... Kxg5
{[%clk 0:00:11.3]} 61. Kf2 {[%clk 0:00:23.8]} 61... Kf4 {[%clk 0:00:11.6]} 62.
d6 {[%clk 0:00:20.7]} 62... cxd6 {[%clk 0:00:12.5]} 63. b6 {[%clk 0:00:22.6]}
63... d5 {[%clk 0:00:13.7]} 64. b7 {[%clk 0:00:24.5]} 64... Be5 {[%clk
0:00:15.2]} 0-1